[Event "Early-Titled-Tuesday-Blitz-April-02-2024"]
[Site "Chess.com"]
[Date "2024.04.02"]
[Round "8"]
[White "the_chess_child"]
[Black "TitarovVasiliYouTube"]
[Result "1-0"]
[WhiteElo "2832"]
[BlackElo "2640"]
[TimeControl "180+1"]
[EndTime "9:24:25 PDT"]
[Termination "the_chess_child won by resignation"]

1. e4 {[%clk 0:03:00.9]} 1... c5 {[%clk 0:02:59.8]} 2. Nf3 {[%clk 0:03:00.5]}
2... Nf6 {[%clk 0:03:00.4]} 3. d3 {[%clk 0:02:59.5]} 3... d5 {[%clk 0:03:00]} 4.
exd5 {[%clk 0:02:59.3]} 4... Nxd5 {[%clk 0:03:00.9]} 5. g3 {[%clk 0:02:59.7]}
5... Nc6 {[%clk 0:03:01.3]} 6. Bg2 {[%clk 0:02:59.8]} 6... e5 {[%clk 0:03:02]}
7. O-O {[%clk 0:03:00.4]} 7... Be7 {[%clk 0:03:02.3]} 8. Re1 {[%clk 0:03:00.8]}
8... f6 {[%clk 0:03:02.8]} 9. c3 {[%clk 0:03:00.9]} 9... O-O {[%clk 0:03:02.7]}
10. d4 {[%clk 0:03:01]} 10... exd4 {[%clk 0:02:58.7]} 11. cxd4 {[%clk
0:03:01.9]} 11... Kh8 {[%clk 0:02:30.1]} 12. Nh4 {[%clk 0:02:47.4]} 12... f5
{[%clk 0:01:49.3]} 13. dxc5 {[%clk 0:02:40.7]} 13... Bxh4 {[%clk 0:01:46.8]} 14.
Qxd5 {[%clk 0:02:39.7]} 14... Be7 {[%clk 0:01:34.9]} 15. Qxd8 {[%clk 0:02:37.5]}
15... Rxd8 {[%clk 0:01:34.6]} 16. Bxc6 {[%clk 0:02:37.2]} 16... bxc6 {[%clk
0:01:35.5]} 17. Rxe7 {[%clk 0:02:36.8]} 17... Rd1+ {[%clk 0:01:35.3]} 18. Kg2
{[%clk 0:02:37.2]} 18... Ba6 {[%clk 0:01:36.2]} 19. Nc3 {[%clk 0:02:37.3]} 19...
Bf1+ {[%clk 0:01:29.9]} 20. Kg1 {[%clk 0:02:35.9]} 20... Rd7 {[%clk 0:01:23.2]}
21. Rxd7 {[%clk 0:02:35.5]} 1-0

[Event "Early-Titled-Tuesday-Blitz-April-02-2024"]
[Site "Chess.com"]
[Date "2024.04.02"]
[Round "8"]
[White "bascheyaro"]
[Black "profedechess93"]
[Result "1-0"]
[WhiteElo "2813"]
[BlackElo "2657"]
[TimeControl "180+1"]
[EndTime "9:25:14 PDT"]
[Termination "bascheyaro won by resignation"]

1. d4 {[%clk 0:02:59.7]} 1... d5 {[%clk 0:02:59.8]} 2. Nf3 {[%clk 0:02:59.9]}
2... Nf6 {[%clk 0:03:00.1]} 3. c4 {[%clk 0:03:00]} 3... c6 {[%clk 0:03:00.1]} 4.
Nc3 {[%clk 0:03:00.1]} 4... dxc4 {[%clk 0:02:59.9]} 5. Bg5 {[%clk 0:03:00.3]}
5... Qa5 {[%clk 0:02:56.9]} 6. Bxf6 {[%clk 0:03:00]} 6... exf6 {[%clk
0:02:57.8]} 7. e3 {[%clk 0:03:00]} 7... Bb4 {[%clk 0:02:55.3]} 8. Qc2 {[%clk
0:02:59.5]} 8... b5 {[%clk 0:02:30.8]} 9. Be2 {[%clk 0:02:58.5]} 9... O-O {[%clk
0:02:28.7]} 10. O-O {[%clk 0:02:58.6]} 10... Bxc3 {[%clk 0:02:28.5]} 11. bxc3
{[%clk 0:02:58.7]} 11... Qc7 {[%clk 0:02:29.1]} 12. a4 {[%clk 0:02:57]} 12... a6
{[%clk 0:02:28.8]} 13. Nd2 {[%clk 0:02:56.1]} 13... Nd7 {[%clk 0:02:15.5]} 14.
Rfb1 {[%clk 0:02:55.3]} 14... Bb7 {[%clk 0:02:13.7]} 15. Bf3 {[%clk 0:02:55.2]}
15... Rab8 {[%clk 0:02:08]} 16. Qf5 {[%clk 0:02:51.9]} 16... g6 {[%clk
0:02:03.6]} 17. Qh3 {[%clk 0:02:47.1]} 17... f5 {[%clk 0:02:01.6]} 18. e4 {[%clk
0:02:41.1]} 18... Qf4 {[%clk 0:01:57.9]} 19. exf5 {[%clk 0:02:33.6]} 19... Qxd2
{[%clk 0:01:52.9]} 20. fxg6 {[%clk 0:02:33.9]} 20... Nf6 {[%clk 0:01:51.1]} 21.
gxf7+ {[%clk 0:02:23.1]} 21... Rxf7 {[%clk 0:01:04.7]} 22. Qg3+ {[%clk
0:02:22.4]} 1-0

[Event "Early-Titled-Tuesday-Blitz-April-02-2024"]
[Site "Chess.com"]
[Date "2024.04.02"]
[Round "8"]
[White "Kratos031"]
[Black "GolfBeforeChess"]
[Result "0-1"]
[WhiteElo "2463"]
[BlackElo "2338"]
[TimeControl "180+1"]
[EndTime "9:25:14 PDT"]
[Termination "GolfBeforeChess won by checkmate"]

1. d4 {[%clk 0:03:00.9]} 1... Nf6 {[%clk 0:02:59.9]} 2. c4 {[%clk 0:03:00.6]}
2... e6 {[%clk 0:02:59.8]} 3. Nc3 {[%clk 0:03:00.5]} 3... c5 {[%clk 0:03:00.2]}
4. d5 {[%clk 0:03:00]} 4... exd5 {[%clk 0:03:00.5]} 5. cxd5 {[%clk 0:03:00.9]}
5... d6 {[%clk 0:03:00.9]} 6. Nf3 {[%clk 0:03:01.5]} 6... g6 {[%clk 0:03:00.1]}
7. e4 {[%clk 0:03:01.9]} 7... a6 {[%clk 0:03:00.3]} 8. a4 {[%clk 0:03:00.7]}
8... Bg4 {[%clk 0:03:00]} 9. Be2 {[%clk 0:03:01]} 9... Bxf3 {[%clk 0:03:00.1]}
10. Bxf3 {[%clk 0:03:01.9]} 10... Bg7 {[%clk 0:03:00.2]} 11. O-O {[%clk
0:03:02.2]} 11... Nbd7 {[%clk 0:03:00.4]} 12. Bf4 {[%clk 0:03:02]} 12... Qe7
{[%clk 0:03:00.7]} 13. Re1 {[%clk 0:03:01.6]} 13... O-O {[%clk 0:03:00.9]} 14.
h3 {[%clk 0:02:58.6]} 14... Ne8 {[%clk 0:03:00.2]} 15. Qd2 {[%clk 0:02:58]}
15... Nc7 {[%clk 0:02:59.8]} 16. a5 {[%clk 0:02:55.7]} 16... Rab8 {[%clk
0:02:59.5]} 17. Ra2 {[%clk 0:02:11.9]} 17... b5 {[%clk 0:02:59]} 18. axb6 {[%clk
0:02:12]} 18... Rxb6 {[%clk 0:02:59.1]} 19. Rea1 {[%clk 0:02:07.7]} 19... Rfb8
{[%clk 0:02:58.9]} 20. Be2 {[%clk 0:01:55]} 20... Ne5 {[%clk 0:02:37.4]} 21.
Bxa6 {[%clk 0:01:37.8]} 21... Nxa6 {[%clk 0:02:35.6]} 22. Rxa6 {[%clk
0:01:37.6]} 22... Rxb2 {[%clk 0:02:34.7]} 23. Qxb2 {[%clk 0:01:06.3]} 23... Rxb2
{[%clk 0:02:33.2]} 24. Ra8+ {[%clk 0:01:06.5]} 24... Bf8 {[%clk 0:02:29.9]} 25.
Bh6 {[%clk 0:01:06.7]} 25... Nd7 {[%clk 0:02:26.8]} 26. R1a7 {[%clk 0:00:59.6]}
26... Qf6 {[%clk 0:02:22.9]} 27. Rxd7 {[%clk 0:00:55.9]} 27... Qxf2+ {[%clk
0:02:22.3]} 28. Kh1 {[%clk 0:00:54.5]} 28... Qxg2# {[%clk 0:02:22.5]} 0-1

[Event "Early-Titled-Tuesday-Blitz-April-02-2024"]
[Site "Chess.com"]
[Date "2024.04.02"]
[Round "8"]
[White "BVB009"]
[Black "FREDERICKtheMATE"]
[Result "1-0"]
[WhiteElo "2849"]
[BlackElo "2694"]
[TimeControl "180+1"]
[EndTime "9:25:16 PDT"]
[Termination "BVB009 won by checkmate"]

1. d4 {[%clk 0:03:00.9]} 1... c6 {[%clk 0:03:00.9]} 2. e4 {[%clk 0:02:55.5]}
2... d5 {[%clk 0:03:01.8]} 3. e5 {[%clk 0:02:54.8]} 3... Bf5 {[%clk 0:03:01.4]}
4. Nf3 {[%clk 0:02:53.3]} 4... e6 {[%clk 0:03:01.7]} 5. Be2 {[%clk 0:02:53.6]}
5... Be7 {[%clk 0:03:00.4]} 6. c4 {[%clk 0:02:46.1]} 6... dxc4 {[%clk
0:03:00.1]} 7. Bxc4 {[%clk 0:02:44.6]} 7... Nd7 {[%clk 0:03:00.1]} 8. Nc3 {[%clk
0:02:44.2]} 8... Nb6 {[%clk 0:03:00.3]} 9. Bd3 {[%clk 0:02:41.6]} 9... Bxd3
{[%clk 0:03:00]} 10. Qxd3 {[%clk 0:02:42.5]} 10... Nd5 {[%clk 0:02:56.2]} 11.
O-O {[%clk 0:02:39.1]} 11... h5 {[%clk 0:02:49.5]} 12. Ne4 {[%clk 0:02:36.6]}
12... Nh6 {[%clk 0:02:49.3]} 13. Bg5 {[%clk 0:02:24]} 13... Bxg5 {[%clk
0:02:47.3]} 14. Nfxg5 {[%clk 0:02:21.9]} 14... Nf5 {[%clk 0:02:47.4]} 15. h4
{[%clk 0:02:13.3]} 15... Nf4 {[%clk 0:02:42.3]} 16. Qf3 {[%clk 0:01:53.4]} 16...
Ng6 {[%clk 0:02:36.3]} 17. g3 {[%clk 0:01:52.8]} 17... Qxd4 {[%clk 0:02:34.9]}
18. Rad1 {[%clk 0:01:24.3]} 18... Qxe5 {[%clk 0:02:32.4]} 19. Rfe1 {[%clk
0:01:23.8]} 19... Rd8 {[%clk 0:02:23.8]} 20. Rxd8+ {[%clk 0:01:18.4]} 20... Ke7
{[%clk 0:02:18.7]} 21. Rxh8 {[%clk 0:01:14.9]} 21... Nxh8 {[%clk 0:02:19.6]} 22.
Qa3+ {[%clk 0:01:11.8]} 22... Kd8 {[%clk 0:02:13.2]} 23. Qf8+ {[%clk 0:01:09.4]}
23... Kc7 {[%clk 0:02:12.2]} 24. Qxh8 {[%clk 0:01:09.3]} 24... f6 {[%clk
0:02:06.6]} 25. Nf7 {[%clk 0:01:07.4]} 25... Qxb2 {[%clk 0:02:05.4]} 26. Qd8#
{[%clk 0:01:07]} 1-0

[Event "Early-Titled-Tuesday-Blitz-April-02-2024"]
[Site "Chess.com"]
[Date "2024.04.02"]
[Round "8"]
[White "PolandHussars"]
[Black "Road2GM3000"]
[Result "1-0"]
[WhiteElo "2585"]
[BlackElo "2448"]
[TimeControl "180+1"]
[EndTime "9:25:20 PDT"]
[Termination "PolandHussars won by resignation"]

1. e4 {[%clk 0:03:00.9]} 1... c5 {[%clk 0:02:25.1]} 2. Ne2 {[%clk 0:03:00.9]}
2... d6 {[%clk 0:02:25.7]} 3. g3 {[%clk 0:03:01.2]} 3... Nf6 {[%clk 0:02:26.2]}
4. Bg2 {[%clk 0:03:01.7]} 4... Nc6 {[%clk 0:02:26.8]} 5. c3 {[%clk 0:03:02.1]}
5... h5 {[%clk 0:02:25.1]} 6. h3 {[%clk 0:03:01.4]} 6... h4 {[%clk 0:02:24.8]}
7. g4 {[%clk 0:03:01.9]} 7... e5 {[%clk 0:02:14.8]} 8. d4 {[%clk 0:03:01.8]}
8... exd4 {[%clk 0:02:14.3]} 9. cxd4 {[%clk 0:03:02.7]} 9... cxd4 {[%clk
0:02:14.6]} 10. Nxd4 {[%clk 0:03:03.1]} 10... Qb6 {[%clk 0:02:13.8]} 11. Nb3
{[%clk 0:02:56.5]} 11... Be6 {[%clk 0:02:11.1]} 12. Be3 {[%clk 0:02:55.4]} 12...
Qb4+ {[%clk 0:02:09.5]} 13. N1d2 {[%clk 0:02:52]} 13... Ne5 {[%clk 0:01:57.7]}
14. O-O {[%clk 0:02:50.5]} 14... Nexg4 {[%clk 0:01:33.1]} 15. hxg4 {[%clk
0:02:48.3]} 15... Bxg4 {[%clk 0:01:30.2]} 16. Bf3 {[%clk 0:02:47.1]} 16... Be6
{[%clk 0:01:12.6]} 17. a3 {[%clk 0:02:41]} 17... Qb5 {[%clk 0:01:06.9]} 18. Nd4
{[%clk 0:02:40.9]} 18... Qe5 {[%clk 0:01:03.5]} 19. Nxe6 {[%clk 0:02:39]} 19...
fxe6 {[%clk 0:01:02.8]} 20. Nc4 {[%clk 0:02:31.2]} 20... Qb5 {[%clk 0:00:59.7]}
21. Nxd6+ {[%clk 0:02:28]} 21... Bxd6 {[%clk 0:01:00.6]} 22. Qxd6 {[%clk
0:02:27.8]} 22... h3 {[%clk 0:00:56.7]} 23. Qxe6+ {[%clk 0:02:25]} 23... Kf8
{[%clk 0:00:57.2]} 24. Rac1 {[%clk 0:02:20.1]} 24... h2+ {[%clk 0:00:54.2]} 25.
Kh1 {[%clk 0:02:20.2]} 25... Rd8 {[%clk 0:00:52.5]} 26. Bc5+ {[%clk 0:02:17]}
1-0

[Event "Early-Titled-Tuesday-Blitz-April-02-2024"]
[Site "Chess.com"]
[Date "2024.04.02"]
[Round "8"]
[White "joksijoksi"]
[Black "NigiriSushies"]
[Result "1-0"]
[WhiteElo "2538"]
[BlackElo "2318"]
[TimeControl "180+1"]
[EndTime "9:25:23 PDT"]
[Termination "joksijoksi won by checkmate"]

1. e4 {[%clk 0:03:00.9]} 1... c5 {[%clk 0:03:00]} 2. Nf3 {[%clk 0:02:58.1]} 2...
d6 {[%clk 0:03:00.3]} 3. d4 {[%clk 0:02:58.2]} 3... cxd4 {[%clk 0:03:01.2]} 4.
Nxd4 {[%clk 0:02:58.6]} 4... Nf6 {[%clk 0:03:02.1]} 5. Nc3 {[%clk 0:02:43.9]}
5... a6 {[%clk 0:03:01.6]} 6. Be3 {[%clk 0:02:39.3]} 6... e5 {[%clk 0:03:00.9]}
7. Nb3 {[%clk 0:02:38.1]} 7... Be6 {[%clk 0:03:00.9]} 8. Be2 {[%clk 0:02:36]}
8... Be7 {[%clk 0:02:59.5]} 9. O-O {[%clk 0:02:36.4]} 9... O-O {[%clk
0:02:58.4]} 10. f4 {[%clk 0:02:34.9]} 10... exf4 {[%clk 0:02:42.7]} 11. Bxf4
{[%clk 0:02:33.7]} 11... d5 {[%clk 0:02:33.4]} 12. exd5 {[%clk 0:02:31.3]} 12...
Nxd5 {[%clk 0:02:32.4]} 13. Nxd5 {[%clk 0:02:31.1]} 13... Bxd5 {[%clk
0:02:26.6]} 14. Bf3 {[%clk 0:02:31.4]} 14... Bxf3 {[%clk 0:02:24.6]} 15. Qxf3
{[%clk 0:02:32.3]} 15... Nc6 {[%clk 0:02:23.5]} 16. Rad1 {[%clk 0:02:31]} 16...
Qb6+ {[%clk 0:02:20.6]} 17. Kh1 {[%clk 0:02:29.6]} 17... Rad8 {[%clk 0:02:18.6]}
18. Rxd8 {[%clk 0:02:28.4]} 18... Rxd8 {[%clk 0:02:17]} 19. Be3 {[%clk
0:02:28.3]} 19... Qb5 {[%clk 0:01:43.2]} 20. Qxf7+ {[%clk 0:02:24.8]} 20... Kh8
{[%clk 0:01:42.5]} 21. Nd4 {[%clk 0:02:20.2]} 21... Nxd4 {[%clk 0:01:26.8]} 22.
Bxd4 {[%clk 0:02:21.1]} 22... Bf6 {[%clk 0:01:26.2]} 23. c4 {[%clk 0:02:08]}
23... Qc6 {[%clk 0:01:08.6]} 24. Bxf6 {[%clk 0:02:03.1]} 24... gxf6 {[%clk
0:01:09.5]} 25. h3 {[%clk 0:01:56.1]} 25... Rd2 {[%clk 0:01:08.4]} 26. Qf8#
{[%clk 0:01:55.3]} 1-0

[Event "Early-Titled-Tuesday-Blitz-April-02-2024"]
[Site "Chess.com"]
[Date "2024.04.02"]
[Round "8"]
[White "blitzking1729"]
[Black "Jospem"]
[Result "0-1"]
[WhiteElo "2771"]
[BlackElo "3047"]
[TimeControl "180+1"]
[EndTime "9:25:24 PDT"]
[Termination "Jospem won by resignation"]

1. c4 {[%clk 0:03:00.5]} 1... c5 {[%clk 0:03:00.5]} 2. Nc3 {[%clk 0:03:00.1]}
2... Nc6 {[%clk 0:03:01.1]} 3. g3 {[%clk 0:03:00.7]} 3... g6 {[%clk 0:03:01.6]}
4. Bg2 {[%clk 0:03:01.1]} 4... Bg7 {[%clk 0:03:02.5]} 5. e3 {[%clk 0:03:00.9]}
5... d6 {[%clk 0:03:02.9]} 6. Nge2 {[%clk 0:03:01.5]} 6... e6 {[%clk 0:03:03.6]}
7. O-O {[%clk 0:03:01.2]} 7... Nge7 {[%clk 0:03:04.2]} 8. d4 {[%clk 0:03:01.7]}
8... O-O {[%clk 0:03:04.2]} 9. d5 {[%clk 0:02:56]} 9... exd5 {[%clk 0:03:04.2]}
10. cxd5 {[%clk 0:02:56.5]} 10... Na5 {[%clk 0:03:04.7]} 11. Rb1 {[%clk
0:02:46.5]} 11... Bf5 {[%clk 0:03:02.8]} 12. e4 {[%clk 0:02:46.6]} 12... Bg4
{[%clk 0:03:03.4]} 13. h3 {[%clk 0:02:45.1]} 13... Bxe2 {[%clk 0:03:02.8]} 14.
Qxe2 {[%clk 0:02:45]} 14... a6 {[%clk 0:03:01.8]} 15. a4 {[%clk 0:02:44.8]}
15... Nc8 {[%clk 0:03:01.2]} 16. f4 {[%clk 0:02:38.1]} 16... Nb3 {[%clk
0:03:00.9]} 17. Be3 {[%clk 0:02:35.8]} 17... Re8 {[%clk 0:03:00.6]} 18. Qf2
{[%clk 0:02:31.1]} 18... Nb6 {[%clk 0:02:58.1]} 19. Kh2 {[%clk 0:02:06.2]} 19...
Nc4 {[%clk 0:02:57.4]} 20. Rbd1 {[%clk 0:02:03.3]} 20... b5 {[%clk 0:02:48.6]}
21. axb5 {[%clk 0:02:03]} 21... axb5 {[%clk 0:02:49.5]} 22. e5 {[%clk
0:01:44.4]} 22... Rb8 {[%clk 0:02:41.4]} 23. e6 {[%clk 0:01:41.8]} 23... f5
{[%clk 0:02:41.4]} 24. Rfe1 {[%clk 0:01:38.5]} 24... b4 {[%clk 0:02:40.7]} 25.
Na4 {[%clk 0:01:32.2]} 25... Qa5 {[%clk 0:02:31.6]} 26. Bf1 {[%clk 0:01:28.8]}
26... Nxe3 {[%clk 0:02:31]} 27. Qxe3 {[%clk 0:01:26.6]} 27... Qxa4 {[%clk
0:02:31]} 28. g4 {[%clk 0:00:55.2]} 28... Nd4 {[%clk 0:02:29.3]} 29. gxf5 {[%clk
0:00:50.9]} 29... Qc2+ {[%clk 0:02:28.9]} 30. Rd2 {[%clk 0:00:47.4]} 30... Qxd2+
{[%clk 0:02:28.1]} 0-1

[Event "Early-Titled-Tuesday-Blitz-April-02-2024"]
[Site "Chess.com"]
[Date "2024.04.02"]
[Round "8"]
[White "stolencandy13"]
[Black "RobertoJBM"]
[Result "1/2-1/2"]
[WhiteElo "2675"]
[BlackElo "2805"]
[TimeControl "180+1"]
[EndTime "9:25:32 PDT"]
[Termination "Game drawn by repetition"]

1. d4 {[%clk 0:03:00.9]} 1... d5 {[%clk 0:02:53.5]} 2. Bf4 {[%clk 0:03:00.6]}
2... e6 {[%clk 0:02:53.1]} 3. e3 {[%clk 0:03:01.1]} 3... Bd6 {[%clk 0:02:51]} 4.
Bg3 {[%clk 0:03:01.4]} 4... Qe7 {[%clk 0:02:47]} 5. f4 {[%clk 0:02:57.2]} 5...
Nf6 {[%clk 0:02:44.4]} 6. Nd2 {[%clk 0:02:56.3]} 6... O-O {[%clk 0:02:42.2]} 7.
Bd3 {[%clk 0:02:56.3]} 7... c5 {[%clk 0:02:41.5]} 8. c3 {[%clk 0:02:56.3]} 8...
b6 {[%clk 0:02:40.5]} 9. Qe2 {[%clk 0:02:52.8]} 9... a5 {[%clk 0:02:39.6]} 10.
Ngf3 {[%clk 0:02:49.8]} 10... Ba6 {[%clk 0:02:39.1]} 11. Bh4 {[%clk 0:02:48.6]}
11... Bxd3 {[%clk 0:02:38.7]} 12. Qxd3 {[%clk 0:02:49.5]} 12... Qd8 {[%clk
0:02:37.8]} 13. O-O {[%clk 0:02:46.4]} 13... Be7 {[%clk 0:02:36.5]} 14. Ne5
{[%clk 0:02:43.8]} 14... Nfd7 {[%clk 0:02:35.7]} 15. Bxe7 {[%clk 0:02:41]} 15...
Qxe7 {[%clk 0:02:36.6]} 16. a4 {[%clk 0:02:30.7]} 16... Qd6 {[%clk 0:02:26.2]}
17. Rf3 {[%clk 0:02:27]} 17... Nc6 {[%clk 0:02:23.9]} 18. Rh3 {[%clk 0:02:21.9]}
18... f5 {[%clk 0:02:23.8]} 19. Nxd7 {[%clk 0:02:15.6]} 19... Qxd7 {[%clk
0:02:23.6]} 20. Nf3 {[%clk 0:02:16.1]} 20... c4 {[%clk 0:02:18.5]} 21. Qe2
{[%clk 0:02:07.2]} 21... Nd8 {[%clk 0:02:11.7]} 22. Ng5 {[%clk 0:02:05.8]} 22...
h6 {[%clk 0:02:11.2]} 23. Nf3 {[%clk 0:02:06.1]} 23... Nf7 {[%clk 0:02:09.2]}
24. Rg3 {[%clk 0:02:05.4]} 24... Kh7 {[%clk 0:02:05.8]} 25. Nh4 {[%clk
0:02:03.9]} 25... Nh8 {[%clk 0:01:58.7]} 26. Nf3 {[%clk 0:01:47.6]} 26... Nf7
{[%clk 0:01:50.7]} 27. Nh4 {[%clk 0:01:47.6]} 27... Nh8 {[%clk 0:01:36.5]} 28.
Nf3 {[%clk 0:01:47.5]} 28... Nf7 {[%clk 0:01:11.7]} 1/2-1/2

[Event "Early-Titled-Tuesday-Blitz-April-02-2024"]
[Site "Chess.com"]
[Date "2024.04.02"]
[Round "8"]
[White "chessdjw"]
[Black "Nf3c5"]
[Result "1-0"]
[WhiteElo "2803"]
[BlackElo "2611"]
[TimeControl "180+1"]
[EndTime "9:25:47 PDT"]
[Termination "chessdjw won by resignation"]

1. d4 {[%clk 0:03:00.9]} 1... Nf6 {[%clk 0:02:56.1]} 2. c4 {[%clk 0:03:00.7]}
2... e6 {[%clk 0:02:49.9]} 3. Nc3 {[%clk 0:03:01.2]} 3... Bb4 {[%clk 0:02:49.6]}
4. Nf3 {[%clk 0:03:00.8]} 4... b6 {[%clk 0:02:43]} 5. e3 {[%clk 0:02:59.4]} 5...
Bb7 {[%clk 0:02:42.5]} 6. Bd3 {[%clk 0:02:59.7]} 6... Ne4 {[%clk 0:02:33.6]} 7.
O-O {[%clk 0:02:58.7]} 7... Bxc3 {[%clk 0:02:32.4]} 8. bxc3 {[%clk 0:02:58.3]}
8... O-O {[%clk 0:02:30.4]} 9. Ne1 {[%clk 0:02:51]} 9... f5 {[%clk 0:02:21.8]}
10. f3 {[%clk 0:02:49.9]} 10... Nd6 {[%clk 0:02:20.7]} 11. c5 {[%clk 0:02:20.5]}
11... Nf7 {[%clk 0:02:10]} 12. Rb1 {[%clk 0:02:11.9]} 12... Nc6 {[%clk
0:01:56.7]} 13. e4 {[%clk 0:02:03.5]} 13... fxe4 {[%clk 0:01:49.8]} 14. fxe4
{[%clk 0:02:03.4]} 14... d6 {[%clk 0:01:43.5]} 15. cxd6 {[%clk 0:02:01.8]} 15...
cxd6 {[%clk 0:01:43.1]} 16. Qh5 {[%clk 0:01:57.3]} 16... e5 {[%clk 0:01:38.2]}
17. Bc4 {[%clk 0:01:46]} 17... Qe7 {[%clk 0:01:37.5]} 18. Bg5 {[%clk 0:01:42.9]}
18... Qc7 {[%clk 0:01:34.4]} 19. Nd3 {[%clk 0:01:30.5]} 19... g6 {[%clk
0:01:21.9]} 20. Qh6 {[%clk 0:01:20.8]} 20... Na5 {[%clk 0:01:22.4]} 21. Bf6
{[%clk 0:01:20.1]} 1-0

[Event "Early-Titled-Tuesday-Blitz-April-02-2024"]
[Site "Chess.com"]
[Date "2024.04.02"]
[Round "8"]
[White "RuperezA"]
[Black "azikom"]
[Result "1-0"]
[WhiteElo "2546"]
[BlackElo "2633"]
[TimeControl "180+1"]
[EndTime "9:25:56 PDT"]
[Termination "RuperezA won by checkmate"]

1. e4 {[%clk 0:03:00.9]} 1... c6 {[%clk 0:03:00.9]} 2. Nc3 {[%clk 0:03:00.4]}
2... d5 {[%clk 0:03:01.8]} 3. Nf3 {[%clk 0:03:01.1]} 3... a6 {[%clk 0:02:59.4]}
4. d4 {[%clk 0:03:00.6]} 4... Bg4 {[%clk 0:02:58.4]} 5. h3 {[%clk 0:03:00.9]}
5... Bh5 {[%clk 0:02:57.5]} 6. g4 {[%clk 0:02:58.4]} 6... Bg6 {[%clk 0:02:57]}
7. exd5 {[%clk 0:02:49.8]} 7... cxd5 {[%clk 0:02:56.4]} 8. h4 {[%clk 0:02:50.7]}
8... Nc6 {[%clk 0:02:42.3]} 9. h5 {[%clk 0:02:34.8]} 9... Be4 {[%clk 0:02:42]}
10. Be3 {[%clk 0:02:35.5]} 10... e6 {[%clk 0:02:40.7]} 11. Nxe4 {[%clk
0:02:24.4]} 11... dxe4 {[%clk 0:02:40.3]} 12. Ng5 {[%clk 0:02:25.1]} 12... Nf6
{[%clk 0:02:39.8]} 13. Bg2 {[%clk 0:02:21.4]} 13... Qd5 {[%clk 0:02:32.2]} 14.
O-O {[%clk 0:02:04.2]} 14... h6 {[%clk 0:02:25.9]} 15. Nxe4 {[%clk 0:01:55.7]}
15... Nxe4 {[%clk 0:02:25.2]} 16. c4 {[%clk 0:01:56.4]} 16... Qxc4 {[%clk
0:01:49.6]} 17. Bxe4 {[%clk 0:01:54.6]} 17... Be7 {[%clk 0:01:45.1]} 18. Rc1
{[%clk 0:01:50]} 18... Qb5 {[%clk 0:01:45.3]} 19. a4 {[%clk 0:01:49.5]} 19...
Qxb2 {[%clk 0:01:12.1]} 20. Rxc6 {[%clk 0:01:48.1]} 20... O-O {[%clk 0:01:11]}
21. Rc7 {[%clk 0:01:47.1]} 21... Bf6 {[%clk 0:01:05.3]} 22. Rxb7 {[%clk
0:01:46.6]} 22... Qa2 {[%clk 0:01:04.6]} 23. Bb1 {[%clk 0:01:34.5]} 23... Qa3
{[%clk 0:01:01.5]} 24. Qd3 {[%clk 0:01:32.6]} 24... Qxa4 {[%clk 0:01:01.9]} 25.
Qh7# {[%clk 0:01:32.4]} 1-0

[Event "Early-Titled-Tuesday-Blitz-April-02-2024"]
[Site "Chess.com"]
[Date "2024.04.02"]
[Round "8"]
[White "FlemingA"]
[Black "Rodalquilar"]
[Result "0-1"]
[WhiteElo "2466"]
[BlackElo "2733"]
[TimeControl "180+1"]
[EndTime "9:25:58 PDT"]
[Termination "Rodalquilar won by resignation"]

1. Nc3 {[%clk 0:02:55.6]} 1... d5 {[%clk 0:02:59.8]} 2. Nf3 {[%clk 0:02:54.7]}
2... Nf6 {[%clk 0:02:58.9]} 3. d3 {[%clk 0:02:54.7]} 3... h6 {[%clk 0:02:53]} 4.
g3 {[%clk 0:02:52.7]} 4... Bf5 {[%clk 0:02:52.9]} 5. Bg2 {[%clk 0:02:52.9]} 5...
e6 {[%clk 0:02:53.4]} 6. O-O {[%clk 0:02:53.4]} 6... Be7 {[%clk 0:02:53.6]} 7.
Re1 {[%clk 0:02:53]} 7... O-O {[%clk 0:02:52.8]} 8. Ne5 {[%clk 0:02:53.1]} 8...
Bh7 {[%clk 0:02:50.5]} 9. e4 {[%clk 0:02:53]} 9... c6 {[%clk 0:02:50.9]} 10. Qe2
{[%clk 0:02:49.9]} 10... a5 {[%clk 0:02:51.1]} 11. a4 {[%clk 0:02:49.5]} 11...
Na6 {[%clk 0:02:49.6]} 12. h4 {[%clk 0:02:40.9]} 12... Nb4 {[%clk 0:02:50]} 13.
Na2 {[%clk 0:02:31.1]} 13... Qc7 {[%clk 0:02:47.4]} 14. Nxb4 {[%clk 0:02:20.7]}
14... axb4 {[%clk 0:02:47.7]} 15. f4 {[%clk 0:02:13.9]} 15... Bd6 {[%clk
0:02:37]} 16. Ng4 {[%clk 0:02:11.9]} 16... Nxg4 {[%clk 0:02:32.3]} 17. Qxg4
{[%clk 0:02:12.8]} 17... dxe4 {[%clk 0:02:29.9]} 18. dxe4 {[%clk 0:02:11.7]}
18... f5 {[%clk 0:02:30.3]} 19. Qe2 {[%clk 0:02:06.3]} 19... e5 {[%clk 0:02:30]}
20. fxe5 {[%clk 0:01:42.8]} 20... Bxe5 {[%clk 0:02:30.1]} 21. exf5 {[%clk
0:01:43.7]} 21... Bxg3 {[%clk 0:02:27]} 22. Qe7 {[%clk 0:01:44.3]} 22... Bxf5
{[%clk 0:02:21.9]} 23. Qxc7 {[%clk 0:01:39.7]} 23... Bxc7 {[%clk 0:02:22.8]} 24.
Re7 {[%clk 0:01:38.3]} 24... Bb6+ {[%clk 0:02:22.4]} 25. Kh1 {[%clk 0:01:36.7]}
25... Rae8 {[%clk 0:02:18.3]} 26. Rxe8 {[%clk 0:01:23.1]} 26... Rxe8 {[%clk
0:02:18.5]} 27. Bd2 {[%clk 0:01:24]} 27... Bc5 {[%clk 0:02:10.6]} 28. c3 {[%clk
0:01:18.2]} 28... b3 {[%clk 0:02:10.9]} 29. Re1 {[%clk 0:01:13.4]} 29... Rxe1+
{[%clk 0:02:04.2]} 30. Bxe1 {[%clk 0:01:13.7]} 30... Ba3 {[%clk 0:02:05.1]} 31.
a5 {[%clk 0:01:07.1]} 31... Bxb2 {[%clk 0:02:05.1]} 32. a6 {[%clk 0:01:07.1]}
32... bxa6 {[%clk 0:02:05.6]} 33. Bxc6 {[%clk 0:01:07.3]} 33... Bc2 {[%clk
0:01:52.8]} 34. Kg2 {[%clk 0:01:05.6]} 34... Ba3 {[%clk 0:01:48.6]} 35. Kf3
{[%clk 0:01:05]} 35... b2 {[%clk 0:01:47.2]} 0-1